bitfinex/quotes_ETHUSD_20250625
["timestamp","ask_amount","ask_price","bid_price","bid_amount"]
[1750840790411,1.9155845,2432.3,2431.8,12.65015678]
[1750840790627,1.613,2432.3,2431.8,8.538]
[1750840790939,11.613,2432.3,2431.8,12.65008286]
[1750840791239,1.613,2432.3,2431.8,12.6501029]
[1750840791390,11.613,2432.3,2431.8,12.6501029]
[1750840791590,15.72434649,2432.3,2431.8,12.6501029]
[1750840792594,15.72434649,2432.3,2431.8,8.538]
[1750840792908,10.0,2432.1,2431.5,4.11263107]
[1750840793114,10.0,2432.1,2431.6,12.64940285]
[1750840793309,3.59653437,2432.3,2431.6,12.64947534]
[1750840793514,1.613,2432.3,2431.9,4.1118965]
[1750840793826,1.613,2432.3,2432.0,6.763]
[1750840794309,10.0,2432.2,2432.1,6.763]
[1750840795508,5.72449033,2432.3,2432.1,6.763]
[1750840795910,5.72449033,2432.3,2431.7,4.11228868]
[1750840796209,4.11151397,2432.2,2431.8,8.531]
[1750840796408,4.11151397,2432.2,2431.7,4.11225309]
[1750840796610,4.11151397,2432.2,2431.9,6.762]
[1750840797829,10.0,2431.9,2431.7,6.761]
[1750840798529,10.0,2432.0,2431.7,6.761]
[1750840798827,10.0,2432.1,2431.7,6.761]
[1750840799034,4.11187025,2432.0,2431.7,6.761]
[1750840799334,4.11199004,2432.0,2431.7,6.761]
[1750840799626,1.57245559,2432.1,2431.7,10.87333832]
[1750840800196,1.57245559,2432.1,2431.8,4.11217076]
[1750840800433,15.72442179,2432.3,2431.8,4.11217076]
[1750840800727,11.613,2432.3,2431.3,6.57642282]
[1750840800930,10.0,2432.1,2431.7,4.1123453]
[1750840801131,1.5323,2432.0,2431.0,4.11340546]
[1750840801441,14.11203076,2431.9,2431.4,4.11272249]
[1750840801808,10.0,2431.9,2431.5,4.11267507]
[1750840803127,9.956775,2431.9,2431.6,4.11250485]
[1750840803431,9.956775,2431.9,2431.7,4.11233837]
[1750840803953,9.956775,2431.9,2431.6,4.11243748]
[1750840805339,9.956775,2431.9,2431.7,4.11234236]
[1750840806417,9.956775,2431.9,2431.7,4.11223089]
[1750840808110,9.956775,2431.9,2431.7,4.11221467]
[1750840808436,9.956775,2431.9,2431.8,4.11218027]
[1750840809737,9.956775,2431.9,2431.7,4.11226046]
[1750840810540,9.956775,2431.9,2431.7,4.11222672]
[1750840812558,9.956775,2431.9,2431.8,4.11218027]
[1750840812923,9.956775,2431.9,2431.7,4.11226456]
[1750840813763,9.956775,2431.9,2431.8,4.11218027]
[1750840817436,9.956775,2431.9,2431.7,4.1122582]
[1750840817839,9.956775,2431.9,2431.8,4.11218027]
[1750840818338,9.956775,2431.9,2431.7,4.11226701]
[1750840818727,9.956775,2431.9,2431.6,5.88145946]
[1750840818728,9.956775,2431.9,2431.6,5.88140604]
[1750840819355,9.956775,2431.9,2431.7,4.11234318]
[1750840819872,9.956775,2431.9,2431.8,4.11218027]
[1750840820063,9.956775,2431.9,2431.7,4.11225409]
[1750840820535,9.956775,2431.9,2431.7,6.757]
[1750840820739,9.956775,2431.9,2431.7,10.86934739]
[1750840821860,9.956775,2431.9,2431.8,4.11218027]
[1750840822156,9.956775,2431.9,2431.7,10.86925043]
[1750840823756,9.956775,2431.9,2431.8,4.11218027]
[1750840824363,9.956775,2431.9,2431.7,10.86926921]
[1750840826366,9.956775,2431.9,2431.8,4.11218027]
[1750840826661,9.956775,2431.9,2431.7,10.86925055]
[1750840827360,9.956775,2431.9,2431.7,6.757]
[1750840828265,9.956775,2431.9,2431.6,4.11242786]
[1750840828472,9.956775,2431.9,2431.8,6.756]
[1750840830155,9.956775,2431.9,2431.6,4.1124394]
[1750840830467,9.956775,2431.9,2431.7,6.755]
[1750840837271,9.956775,2431.9,2431.7,10.86732858]
[1750840837767,10.0,2432.1,2431.7,10.86732858]
[1750840838145,14.11168002,2432.1,2431.7,6.755]
[1750840838345,15.7062801,2432.2,2431.7,10.86734054]
[1750840838796,4.11168138,2432.1,2431.7,6.755]
[1750840839022,10.0,2431.9,2431.7,6.755]
[1750840839476,4.11175279,2432.1,2431.7,6.755]
[1750840839653,10.0,2432.0,2431.7,6.755]
[1750840843548,4.11184683,2432.0,2431.7,6.755]
[1750840843760,4.11176656,2432.1,2431.7,6.755]
[1750840844556,4.11187729,2432.0,2431.7,6.755]
[1750840846178,4.11202954,2431.9,2431.7,6.755]
[1750840846475,10.0,2431.8,2431.7,6.755]
[1750840847447,4.11174369,2432.1,2431.7,6.755]
[1750840848473,4.11185539,2432.0,2431.7,6.755]
[1750840848873,14.11175562,2432.1,2431.7,6.755]
[1750840849488,4.11194297,2432.0,2431.7,6.755]
[1750840849790,4.11175562,2432.1,2431.7,6.755]
[1750840849991,10.0,2431.9,2431.7,6.755]
[1750840851681,14.11174905,2432.1,2431.7,6.755]
[1750840851881,4.11214358,2431.9,2431.3,4.11294552]
[1750840852058,14.11214358,2431.9,2431.4,8.516]
[1750840852459,10.0,2431.8,2431.4,12.62883103]
[1750840852765,10.0,2431.8,2431.4,4.11283103]
[1750840853083,10.0,2431.8,2431.5,4.11266034]
[1750840853386,10.0,2431.8,2431.5,12.62866034]
[1750840854388,10.0,2431.8,2431.5,8.516]
[1750840854684,6.57642282,2431.9,2431.0,0.55]
[1750840854894,4.11261832,2431.6,2431.1,12.62426832]
[1750840855183,14.1125335,2431.6,2431.2,4.11317381]
[1750840855571,14.1125335,2431.6,2431.1,12.62427508]
[1750840855879,10.0,2431.6,2431.2,4.11319364]
[1750840856077,10.0,2431.6,2431.3,4.11301924]
[1750840856259,10.0,2431.6,2431.4,6.749]
[1750840856460,10.0,2431.6,2431.3,4.11301924]
[1750840856673,10.0,2431.6,2431.4,8.511]
[1750840856881,1.6592,2431.9,2431.5,4.11267037]
[1750840857070,14.11191551,2432.0,2431.5,4.11267037]
[1750840857270,14.11191551,2432.0,2431.4,12.62377394]
[1750840857672,14.11191551,2432.0,2431.5,4.11264432]
[1750840859694,4.11205638,2431.9,2431.4,12.62377231]
[1750840860065,10.0,2431.7,2431.4,8.511]
[1750840860594,10.0,2431.8,2431.4,12.62384954]
[1750840862391,14.11218029,2431.8,2431.4,12.62384954]
[1750840862596,4.11218029,2431.8,2431.4,8.511]
[1750840862989,4.11218029,2431.8,2431.4,12.62385597]
[1750840863198,14.11210182,2431.9,2431.4,12.62385597]
[1750840863568,14.11210182,2431.9,2431.5,4.11268447]
[1750840863769,14.11193088,2432.0,2431.5,4.11268447]
[1750840864470,1.5705,2432.8,2431.7,0.55]
[1750840864672,4.11108026,2432.5,2431.9,4.66190277]
[1750840864879,10.0,2432.4,2432.0,5.87377064]
[1750840865081,10.0,2432.4,2432.1,6.747]
[1750840865488,11.5705,2432.4,2431.5,0.55]
[1750840865796,10.0,2432.2,2431.8,4.11214446]
[1750840865970,10.0,2432.2,2431.9,10.85900155]
[1750840866171,10.0,2432.2,2431.9,6.747]
[1750840866378,10.0,2432.2,2432.0,8.509]
[1750840866597,10.0,2432.3,2432.0,8.509]
[1750840867170,14.11092731,2432.6,2432.1,4.11166192]
[1750840867384,4.11090271,2432.6,2432.1,4.11163004]
[1750840867717,4.11116457,2432.5,2432.0,8.509]
[1750840867919,4.11116457,2432.5,2432.0,12.6208048]
[1750840868198,10.0,2432.4,2432.0,12.6208281]
[1750840869812,10.0,2432.4,2432.1,4.11166111]
[1750840870324,4.11091352,2432.6,2432.1,4.11166111]
[1750840870676,14.11091352,2432.6,2432.1,4.11166111]
[1750840870881,10.0,2432.5,2432.0,12.62083027]
[1750840871083,10.0,2432.5,2432.1,4.11153664]
[1750840871292,15.73833125,2432.7,2432.2,4.11145486]
[1750840871609,19.08664876,2432.7,2432.2,4.11145486]
[1750840872611,10.0,2432.5,2432.1,4.11159181]
[1750840874400,10.0,2432.5,2432.2,6.744]
[1750840876828,14.11100959,2432.5,2432.2,6.744]
[1750840878327,10.0,2432.3,2432.2,6.744]
[1750840878527,3.73814799,2432.3,2431.1,10.0]
[1750840878828,14.11205828,2431.9,2431.3,4.11295589]
[1750840878991,4.11218101,2431.8,2431.4,4.11278401]
[1750840879193,4.11218101,2431.8,2431.5,8.504]
[1750840879492,22.30402867,2431.9,2431.5,8.504]
[1750840880092,18.19192282,2431.9,2431.5,12.61667574]
[1750840880299,11.6155,2431.9,2431.5,12.61667574]
[1750840881325,4.11193641,2432.0,2431.5,8.504]
[1750840881326,10.0,2432.0,2431.5,8.504]
[1750840881630,14.11187726,2432.0,2431.6,6.742]
[1750840882633,10.0,2432.0,2431.6,10.85449594]
[1750840882834,10.0,2432.0,2431.6,6.742]
[1750840883035,4.11203508,2431.9,2431.6,6.742]
[1750840883831,10.0,2432.0,2431.2,4.11312686]
[1750840884030,10.0,2431.7,2431.3,12.61693473]
[1750840884235,10.0,2431.7,2431.4,4.11284627]
[1750840884435,10.0,2431.7,2431.5,6.742]
[1750840884821,1.5711,2431.9,2431.6,6.741]
[1750840885134,8.32027783,2431.9,2431.6,6.741]
[1750840885346,10.0,2431.7,2431.6,6.741]
[1750840885710,8.32029145,2431.9,2431.6,6.741]
[1750840886339,4.20822593,2431.9,2431.6,6.741]
[1750840886538,1.5711,2431.9,2431.6,6.741]
[1750840888823,10.0,2431.8,2431.6,6.741]
[1750840889716,4.11218847,2431.8,2431.6,6.741]
[1750840889911,10.0,2431.7,2431.6,6.741]
[1750840890238,10.0,2431.8,2431.6,6.741]
[1750840890419,4.11218547,2431.8,2431.6,6.741]
[1750840890624,14.11218547,2431.8,2431.6,6.741]
[1750840890956,10.0,2431.7,2431.6,6.741]
[1750840891240,5.68315519,2431.9,2431.6,6.741]
[1750840891438,4.11219274,2431.8,2431.6,6.741]
[1750840891612,10.0,2431.7,2431.4,4.1127511]
[1750840891814,10.0,2431.7,2431.5,8.498]
[1750840892015,14.11219729,2431.8,2431.5,8.498]
[1750840892343,10.0,2431.8,2431.5,12.61068401]
[1750840893015,10.0,2431.8,2431.5,8.498]
[1750840893454,10.0,2431.8,2431.5,12.61066864]
[1750840893630,4.11219131,2431.8,2431.5,8.498]
[1750840894049,10.0,2431.8,2431.5,8.498]
[1750840894470,4.11218839,2431.8,2431.5,8.498]
[1750840894767,4.11218839,2431.8,2431.3,4.11297118]
[1750840894944,14.11218839,2431.8,2431.5,6.74]
[1750840895145,4.11218839,2431.8,2431.5,6.74]
[1750840896735,10.0,2431.8,2431.5,6.74]
[1750840897279,4.11218267,2431.8,2431.5,6.74]
[1750840898173,14.11218267,2431.8,2431.5,6.74]
[1750840898875,14.11235302,2431.7,2431.5,6.74]
[1750840899234,10.0,2431.8,2431.5,6.74]
[1750840899436,1.5711,2431.9,2431.5,6.74]
[1750840899836,10.0,2431.8,2431.5,6.74]
[1750840900045,10.0,2431.8,2431.4,4.11279213]
[1750840900244,4.11224454,2431.8,2431.5,6.739]
[1750840900462,1.5711,2431.9,2431.5,6.739]
[1750840900662,14.11219537,2431.8,2431.5,6.739]
[1750840900849,10.0,2431.8,2431.5,6.739]
[1750840901347,14.1123447,2431.8,2431.5,6.739]
[1750840901557,10.0,2431.8,2431.5,6.739]
[1750840901864,14.11225412,2431.8,2431.5,6.739]
[1750840902363,10.0,2431.8,2431.5,6.739]
[1750840902557,4.11218702,2431.8,2431.5,6.739]
[1750840902758,10.0,2431.8,2431.5,6.739]
[1750840903064,10.0,2431.8,2431.5,10.85168486]
[1750840903258,10.0,2431.8,2431.5,6.738]
[1750840903569,14.11222402,2431.8,2431.5,6.738]
[1750840904870,10.0,2431.8,2431.5,6.738]
[1750840905163,10.0,2431.8,2431.5,10.85066529]
[1750840905770,10.0,2431.8,2431.5,6.738]
[1750840906067,10.0,2431.8,2431.5,10.850678]
[1750840906271,10.0,2431.8,2431.5,6.738]
[1750840906637,10.0,2431.8,2431.5,10.85066989]
[1750840907044,10.0,2431.8,2431.5,6.738]
[1750840907463,14.11227335,2431.8,2431.4,6.737]
[1750840908370,4.11235083,2431.7,2431.4,6.737]
[1750840908783,14.11225783,2431.8,2431.4,6.737]
[1750840909397,10.0,2431.8,2431.4,10.84976578]
[1750840909561,10.0,2431.8,2431.5,4.11266506]
[1750840910082,1.5711,2431.9,2431.5,4.11266506]
[1750840910777,10.0,2431.8,2431.5,4.11266506]
[1750840911182,10.0,2431.8,2431.4,10.84976304]
[1750840911757,14.11219356,2431.8,2431.4,6.737]
[1750840911957,4.11236783,2431.7,2431.4,6.737]
[1750840912477,14.1122555,2431.8,2431.4,6.737]
[1750840912680,14.1122555,2431.8,2431.4,6.735]
[1750840913181,10.0,2431.6,2431.4,6.735]
[1750840913479,10.0,2431.4,2431.2,6.735]
[1750840913776,10.0,2431.4,2431.1,6.735]
[1750840913777,14.11288218,2431.4,2431.1,6.735]
[1750840913956,10.0,2431.4,2431.1,6.735]
[1750840915081,10.0,2431.4,2431.1,10.84834649]
[1750840915277,10.0,2431.6,2431.2,4.1131142]
[1750840915579,10.0,2431.4,2431.1,6.735]
[1750840916148,15.52426344,2431.4,2431.0,0.00034827]
[1750840916353,10.0,2431.2,2431.0,0.00034827]
[1750840916762,14.11324347,2431.2,2431.0,0.00034827]
[1750840917050,10.0,2431.2,2431.0,0.00034827]
[1750840917792,4.11374243,2430.9,2430.3,1.754]
[1750840918082,6.57642282,2430.7,2430.4,4.1144658]
[1750840918381,10.0,2430.9,2430.3,6.734]
[1750840918596,10.0,2431.1,2430.3,10.84871282]
[1750840918750,15.72680552,2431.3,2430.8,4.11384005]
[1750840918945,14.11310552,2431.3,2430.8,4.11384005]
[1750840919789,14.11310552,2431.3,2430.7,6.734]
[1750840919790,10.0,2431.1,2430.7,10.84799303]
[1750840919960,10.0,2431.1,2430.7,6.734]
[1750840920161,14.11309649,2431.3,2430.8,4.11379125]
[1750840920404,10.0,2431.5,2431.1,4.11325273]
[1750840920576,10.0,2431.6,2431.2,4.11319196]
[1750840921191,4.11253773,2431.6,2431.1,10.84728639]
[1750840921694,4.11253773,2431.6,2431.1,12.60128639]
[1750840922301,15.76673595,2431.7,2431.2,4.11318311]
[1750840923097,11.6543,2431.7,2431.1,8.488]
[1750840923304,11.6078,2431.3,2431.1,6.734]
[1750840923672,10.0,2431.3,2431.1,6.734]
[1750840924002,6.57642282,2431.2,2430.8,6.734]
[1750840924595,6.57642282,2431.2,2430.8,10.84784769]
[1750840924899,10.0,2431.3,2430.9,4.11365304]
[1750840925081,10.0,2431.3,2431.0,4.11352746]
[1750840925282,10.0,2431.3,2430.9,4.11361336]
[1750840925481,10.0,2431.3,2430.8,10.84782529]
[1750840925482,10.0,2431.3,2431.0,4.11350869]
[1750840927778,11.85929348,2431.7,2430.9,0.55]
[1750840928097,15.66303058,2431.7,2431.2,4.11316573]
[1750840930426,4.11251996,2431.6,2431.1,4.11328235]
[1750840930912,10.0,2431.5,2431.1,4.11328235]
[1750840932313,15.6630469,2431.7,2431.2,4.11316233]
[1750840932612,19.00194686,2431.7,2431.2,4.11316233]
[1750840932921,0.27,2453.4,2431.6,4.11248361]
[1750840932922,4.111794,2432.1,2431.6,4.11248361]
[1750840933585,10.0,2431.8,2431.4,4.11278029]
[1750840935129,10.0,2431.8,2431.5,4.11260671]
[1750840936829,10.0,2431.8,2431.4,4.11285109]
[1750840937049,10.0,2431.8,2431.5,4.11259844]
[1750840937524,10.0,2431.8,2431.4,4.1127621]
[1750840938030,10.0,2431.8,2431.4,12.5977621]
[1750840938420,10.0,2431.8,2431.4,4.1127621]
[1750840938605,10.0,2431.8,2431.5,4.11267617]
[1750840940809,10.0,2431.8,2431.6,4.11249886]
[1750840942338,12.06883527,2431.8,2431.4,8.485]
[1750840942708,12.06883527,2431.8,2431.5,4.11264378]
[1750840943432,12.06883527,2431.8,2431.6,4.11247042]
[1750840943819,12.06883527,2431.8,2431.5,4.11262717]
[1750840944021,10.0,2431.8,2431.5,4.11262717]
[1750840944952,10.0,2431.8,2431.4,12.59776171]
[1750840945460,10.0,2431.8,2431.5,4.11267133]
[1750840945752,10.0,2431.8,2431.4,12.59776103]
[1750840946051,10.0,2431.8,2431.6,4.11244881]
[1750840946250,10.0,2431.8,2431.5,4.11259481]
[1750840946635,10.0,2431.8,2431.4,12.59769318]
[1750840946841,10.0,2431.8,2431.5,4.11267676]
[1750840947043,10.0,2431.8,2431.5,10.84167676]
[1750840947342,10.0,2431.8,2431.5,6.729]
[1750840948444,10.0,2431.8,2431.4,4.11278515]
[1750840948657,15.63608562,2431.8,2431.5,6.729]
[1750840948954,18.26852548,2431.8,2431.5,6.729]
[1750840949760,14.15633986,2431.8,2431.5,6.729]
[1750840950260,11.5239,2431.8,2431.5,10.84167651]
[1750840951165,11.5239,2431.8,2430.7,10.30531612]
[1750840951463,6.57642282,2431.2,2430.6,6.728]
[1750840951765,6.57642282,2431.2,2430.7,0.55]
[1750840951956,6.57642282,2431.2,2430.9,4.11369056]
[1750840953569,27.41736283,2431.4,2430.9,4.11369056]
[1750840953769,23.30442282,2431.4,2431.0,4.11349684]
[1750840954142,20.68929238,2431.4,2430.9,4.11362167]
[1750840954743,10.68937469,2431.4,2430.9,4.11367923]
[1750840954952,21.25462152,2431.4,2430.9,4.11367923]
[1750840955152,20.68937469,2431.4,2430.9,4.11367923]
[1750840957489,4.11320749,2431.2,2430.8,6.728]
[1750840957655,8.17172282,2431.1,2430.8,6.728]
[1750840957861,12.28509305,2431.1,2430.7,6.728]
[1750840958187,12.28509305,2431.1,2430.7,10.84201786]
[1750840958382,12.28509305,2431.1,2430.7,6.728]
[1750840958551,12.28509305,2431.1,2430.6,12.59211344]
[1750840959090,12.28509305,2431.1,2430.7,4.11403021]
[1750840959284,8.17172282,2431.1,2430.7,4.11403021]
[1750840960685,12.28511117,2431.1,2430.7,4.11403021]
[1750840960857,8.17172282,2431.1,2430.7,4.11403021]
[1750840961386,11.6631,2431.4,2430.9,4.11360027]
[1750840961586,10.0,2431.2,2430.9,4.11360027]
[1750840961897,20.68962961,2431.2,2430.7,4.11395383]
[1750840962386,1.6463,2431.0,2430.7,4.11395383]
[1750840962967,1.6463,2431.0,2430.6,4.11409799]
[1750840963389,1.6463,2431.0,2430.7,4.11401855]
[1750840964559,10.0,2430.9,2430.5,4.11430047]
[1750840964760,1.6463,2431.0,2430.5,4.11437443]
[1750840964976,16.57642282,2430.9,2430.5,4.11437443]
[1750840965271,14.11394967,2430.8,2430.3,10.84159074]
[1750840965479,1.5357,2430.7,2430.3,10.84159074]
[1750840966688,1.5357,2430.7,2430.4,4.11448138]
[1750840968368,1.5357,2430.7,2430.5,4.11436152]
[1750840969201,1.5357,2430.7,2430.4,4.11447605]
[1750840971316,11.5357,2430.7,2430.3,10.84163163]
[1750840971516,1.5357,2430.7,2430.4,4.11451094]
[1750840975430,1.5357,2430.7,2430.3,10.84163163]
[1750840975612,1.5357,2430.7,2430.4,4.11445271]
[1750840976227,1.5357,2430.7,2430.5,4.11436332]
[1750840976526,1.5357,2430.7,2430.4,4.11449421]
[1750840977108,1.5357,2430.7,2430.5,4.11436901]
[1750840977828,1.5998,2430.9,2430.5,4.11428502]
[1750840978001,10.0,2430.8,2430.5,4.11428502]
[1750840978408,10.0,2430.8,2430.6,4.11419229]
[1750840978625,10.0,2430.8,2430.5,4.11428967]
[1750840979831,10.0,2430.8,2430.6,4.11420015]
[1750840980441,1.5578,2431.2,2430.6,10.84020015]
[1750840980600,1.5578,2431.2,2430.8,4.11375427]
[1750840981009,1.5578,2431.2,2430.7,0.55]
[1750840981214,4.11306016,2431.3,2430.8,4.11377899]
[1750840981432,4.11306016,2431.3,2430.9,10.83969724]
[1750840981723,15.6707477,2431.4,2430.9,10.83969724]
[1750840982036,18.92558355,2431.4,2430.9,10.83969724]
[1750840985330,1.5578,2431.4,2431.0,4.11351169]
[1750840985502,14.11275025,2431.5,2431.0,4.11351169]
[1750840985903,10.0,2431.5,2431.1,4.11327892]
[1750840986714,12.31061803,2431.6,2430.9,4.11357174]
[1750840986715,10.0,2431.2,2430.9,4.11357174]
[1750840986915,10.0,2431.2,2431.0,6.725]
[1750840987402,6.57642282,2431.5,2431.1,4.11328837]
[1750840988416,10.68916083,2431.5,2431.0,6.725]
[1750840988735,10.68916083,2431.5,2431.0,10.83844413]
[1750840989499,10.68916083,2431.5,2431.1,4.11333054]
[1750840990238,10.0,2431.3,2431.0,6.725]
[1750840990554,10.0,2431.4,2431.0,10.83838512]
[1750840990841,10.0,2431.4,2431.0,6.725]
[1750840991041,10.0,2431.4,2431.1,4.11335896]
[1750840992221,10.0,2431.4,2431.0,6.725]
[1750840992424,10.0,2431.4,2430.7,0.55]
[1750840992425,1.5136,2431.3,2430.9,10.83763006]
[1750840992936,5.62662684,2431.3,2430.8,4.11377223]
[1750840993134,10.0,2431.1,2430.7,6.724]
[1750840993315,10.0,2431.1,2430.8,4.1138675]
[1750840994769,10.0,2431.1,2430.7,10.83795066]
[1750840994945,10.0,2431.1,2430.8,4.11385734]
[1750840995762,10.0,2431.1,2430.7,6.724]
[1750840995763,14.11336964,2431.1,2430.7,6.724]
[1750840995965,1.5146,2431.0,2430.7,6.724]
[1750840996144,1.5146,2431.0,2430.7,10.83795338]
[1750840996460,1.5146,2431.0,2430.6,6.724]
[1750840996661,1.5146,2431.0,2430.8,4.11384048]
[1750840997962,1.5146,2431.0,2430.7,4.11395123]
[1750840998761,1.4146,2431.0,2430.7,4.11395123]
[1750840999981,10.0,2430.8,2430.4,12.58547737]
[1750841000575,10.0,2430.8,2430.5,4.11437564]
[1750841001079,10.0,2430.8,2430.6,4.11420421]
[1750841001439,10.0,2430.8,2430.6,4.11412364]
[1750841002866,10.0,2430.8,2430.7,4.11404122]
[1750841003073,1.6493,2430.9,2430.6,4.11411307]
[1750841003268,10.0,2430.8,2430.6,4.11411307]
[1750841004169,10.0,2430.8,2430.5,4.11429564]
[1750841004983,10.0,2430.8,2430.4,12.5854925]
[1750841005367,10.0,2430.8,2430.5,4.11436869]
[1750841005945,10.0,2430.8,2430.5,10.83736869]
[1750841006189,6.57642282,2430.6,2430.2,0.1043]
[1750841006350,6.57642282,2430.3,2430.0,10.83811368]
[1750841007065,6.57642282,2430.3,2430.0,6.723]
[1750841007266,6.57642282,2430.3,2429.9,5.86331639]
[1750841007467,6.57642282,2430.3,2430.0,6.722]
[1750841007848,6.57642282,2430.3,2430.1,4.11505154]
[1750841008563,6.57642282,2430.3,2430.0,10.83714185]
[1750841008757,10.69114942,2430.3,2429.9,5.86330604]
[1750841008951,10.69114942,2430.3,2430.0,6.723]
[1750841009157,6.57642282,2430.3,2430.0,6.723]
[1750841009464,6.57642282,2430.3,2429.9,5.86330604]
[1750841009677,10.69115492,2430.3,2430.0,6.723]
[1750841009872,1.6336,2430.2,2429.9,8.471]
[1750841010070,1.6336,2430.2,2429.9,12.5863928]
[1750841010466,1.6336,2430.2,2430.0,4.11518435]
[1750841011487,1.6521,2430.4,2430.1,4.11504633]
[1750841011856,11.6521,2430.4,2430.0,4.11515372]
[1750841013687,11.6521,2430.4,2430.1,4.11505207]
[1750841014187,11.571,2430.6,2430.1,4.11503243]
[1750841014383,11.571,2430.6,2430.1,4.11501573]
[1750841014586,11.571,2430.6,2430.3,4.11461446]
[1750841014959,11.571,2430.6,2430.2,10.83684782]
[1750841015159,11.571,2430.6,2430.3,4.11470286]
[1750841016191,10.0,2430.6,2430.4,4.11452469]
[1750841016491,1.5763,2431.0,2430.6,4.11421048]
[1750841016793,1.5763,2431.2,2430.9,4.11370274]
[1750841016991,5.71276231,2431.5,2431.0,4.11344361]
[1750841017291,10.0,2431.4,2431.0,4.11344361]
[1750841019191,11.6,2431.5,2431.0,4.11344361]
[1750841019995,11.6,2431.5,2431.1,4.11330205]
[1750841020562,11.6,2431.5,2431.1,4.11330684]
[1750841021092,1.6314,2431.7,2431.1,6.721]
[1750841021282,1.6314,2431.7,2431.4,4.11275666]
[1750841021593,1.6314,2431.7,2431.4,2.99805666]
[1750841021888,1.6314,2431.7,2431.3,4.11291761]
[1750841022081,1.6314,2431.7,2431.4,4.11281437]
[1750841022281,1.6314,2431.7,2431.3,4.11293496]
[1750841022477,1.6314,2431.7,2431.4,4.11277113]
[1750841022680,4.11172683,2432.1,2431.4,4.11277113]
[1750841022681,1.5058,2432.1,2432.0,4.1118421]
[1750841022883,10.68761148,2432.4,2431.9,4.11192492]
[1750841023062,1.5058,2432.3,2431.7,0.1043]
[1750841023264,1.5058,2432.3,2432.1,4.11159512]
[1750841023869,1.5058,2432.3,2431.9,6.721]
[1750841024073,6.57642282,2432.1,2431.7,4.11231675]
[1750841024377,10.68809998,2432.1,2431.7,4.11231675]
[1750841024576,6.57642282,2432.1,2431.7,4.11231675]
[1750841024972,14.11194859,2432.0,2431.5,4.2169251]
[1750841025178,3.61893714,2431.9,2431.6,4.11250817]
[1750841025372,3.61893714,2431.9,2431.5,10.83259479]
[1750841026877,3.61893714,2431.9,2431.1,4.11334811]
[1750841026878,14.1125157,2431.7,2431.2,4.11307748]
[1750841027070,8.23422282,2431.5,2431.2,12.2409044]
[1750841027989,10.0,2431.4,2431.0,4.1134559]
[1750841028177,10.0,2431.4,2431.0,10.8324559]
[1750841029074,16.57642282,2431.2,2430.9,4.11367513]
[1750841029898,19.01800569,2431.4,2431.0,4.11352736]
[1750841030292,16.55445438,2431.4,2431.0,4.11352935]
[1750841030495,12.44158287,2431.4,2430.8,13.98472295]
[1750841030799,12.44158287,2431.4,2431.1,4.11335616]
[1750841030972,12.44158287,2431.4,2431.0,4.11344204]
[1750841031172,10.0,2431.4,2431.1,4.11326853]
[1750841032300,10.0,2431.4,2431.0,4.11347834]
[1750841032493,10.0,2431.4,2430.8,9.871]
[1750841032694,10.0,2431.2,2430.8,13.98476539]
[1750841033001,10.0,2431.2,2430.9,4.11370129]
[1750841033504,14.11292978,2431.4,2430.9,4.11370129]
[1750841033802,16.30816628,2431.4,2430.9,4.11370129]
[1750841034797,16.30816628,2431.4,2431.0,6.718]
[1750841035102,16.30816628,2431.4,2431.0,10.83151688]
[1750841035404,12.1952365,2431.4,2431.0,10.83151688]
[1750841035614,12.1952365,2431.4,2431.1,4.11331462]
[1750841036108,10.0,2431.4,2431.2,4.11312248]
[1750841037384,1.234723,2432.4,2431.0,10.83151878]
[1750841037385,1.5113,2432.1,2431.3,1.8503]
[1750841037588,5.62306668,2432.1,2431.5,4.11258959]
[1750841037776,10.97346698,2432.0,2431.5,4.11268764]
[1750841038503,10.97346698,2432.0,2431.6,4.11244671]
[1750841038704,15.08536096,2432.0,2431.1,4.11336432]
[1750841038904,14.11225841,2431.8,2431.3,4.11295048]
[1750841039098,11.98093204,2431.7,2431.2,12.57517024]
[1750841039494,10.0,2431.6,2431.2,4.11317024]
[1750841039707,10.0,2431.6,2431.0,4.21777074]
[1750841039708,1.5384,2431.6,2431.3,6.718]
[1750841042612,10.0,2431.4,2431.2,6.718]
[1750841042813,14.11298909,2431.4,2431.2,6.718]
[1750841043021,15.93560798,2431.3,2431.2,6.718]
[1750841043521,11.82258203,2431.3,2431.2,6.718]
[1750841044417,15.93560798,2431.3,2431.2,6.718]
[1750841044620,4.11319762,2431.2,2430.8,13.98477902]
[1750841044923,1.5609,2431.1,2430.9,6.718]
[1750841045719,10.0,2431.0,2430.9,6.718]
[1750841045920,1.5609,2431.1,2430.9,6.718]
[1750841046119,1.5609,2431.1,2430.8,4.11385404]
[1750841046419,1.5609,2431.1,2430.9,6.718]
[1750841046887,1.5609,2431.1,2430.9,10.83169685]
[1750841047089,10.0,2431.2,2430.9,10.83169685]
[1750841049026,10.0,2431.2,2430.9,6.718]
[1750841049192,11.56736303,2431.2,2430.9,6.718]
[1750841049389,15.68056738,2431.2,2430.9,6.718]
[1750841050191,11.56736303,2431.2,2430.9,6.718]
[1750841050395,11.56736303,2431.2,2430.9,10.83168428]
[1750841050595,10.0,2431.2,2431.0,4.11351042]
[1750841051103,10.0,2431.2,2431.0,4.11353352]
[1750841051304,10.0,2431.2,2431.1,4.11336432]
[1750841052801,10.0,2431.2,2431.1,6.40736432]
[1750841053019,1.5636,2431.7,2431.4,4.1127507]
[1750841053190,1.5636,2431.7,2431.5,6.718]
[1750841056029,10.0,2431.8,2431.5,10.83067566]
[1750841056426,1.6259,2431.9,2431.6,4.11250173]